bitfinex-derivatives/quotes_ETHF0:USTF0_20260119
["timestamp","ask_amount","ask_price","bid_price","bid_amount"]
[1768846522300,0.94995451,3214.0,3213.1,0.28842262]
[1768846522504,1.736,3214.3,3213.1,0.28842262]
[1768846522705,0.94992991,3214.2,3213.1,0.28842262]
[1768846523014,0.94992991,3214.1,3213.1,0.28842262]
[1768846523316,0.94992991,3214.0,3213.1,0.28842262]
[1768846523609,1.736,3214.3,3213.1,0.28842262]
[1768846523811,0.94999432,3214.2,3213.1,0.28842262]
[1768846524006,0.94999432,3214.1,3213.1,0.28842262]
[1768846524207,0.94999432,3214.0,3213.1,0.28842262]
[1768846524408,1.736,3214.3,3213.1,0.28842262]
[1768846524599,0.95008216,3214.2,3213.1,0.28842262]
[1768846524800,0.95008216,3214.1,3213.1,0.28842262]
[1768846525005,0.95008216,3214.0,3213.1,0.28842262]
[1768846525202,1.736,3214.3,3213.1,0.28842262]
[1768846525405,0.95020485,3214.2,3213.1,0.28842262]
[1768846525604,0.95020485,3214.1,3213.1,0.28842262]
[1768846525802,0.95020485,3214.0,3213.1,0.28842262]
[1768846526009,1.736,3214.3,3213.1,0.28842262]
[1768846526301,0.95019946,3214.2,3213.1,0.28842262]
[1768846526503,0.95019946,3214.1,3213.1,0.28842262]
[1768846526706,0.95019946,3214.0,3213.1,0.28842262]
[1768846526904,1.736,3214.3,3213.1,0.28842262]
[1768846527117,0.95035426,3214.2,3213.1,0.28842262]
[1768846527316,0.95035426,3214.1,3213.1,0.28842262]
[1768846527517,0.95035426,3214.0,3213.1,0.28842262]
[1768846527720,1.736,3214.3,3213.1,0.28842262]
[1768846527917,0.95055447,3214.2,3213.1,0.28842262]
[1768846528118,0.95055447,3214.1,3213.1,0.28842262]
[1768846528420,0.95055447,3214.0,3213.1,0.28842262]
[1768846528619,1.736,3214.3,3213.1,0.28842262]
[1768846528918,0.95065069,3214.2,3213.1,0.28842262]
[1768846529115,0.95065069,3214.1,3213.1,0.28842262]
[1768846529314,0.95065069,3214.0,3213.1,0.28842262]
[1768846529514,1.736,3214.3,3213.1,0.28842262]
[1768846529716,0.95079986,3214.2,3213.1,0.28842262]
[1768846529921,0.95079986,3214.1,3213.1,0.28842262]
[1768846530124,0.95079986,3214.0,3213.1,0.28842262]
[1768846530326,1.736,3214.3,3213.1,0.28842262]
[1768846530623,0.95069953,3214.2,3213.1,0.28842262]
[1768846530924,0.95069953,3214.1,3213.1,0.28842262]
[1768846531220,0.95069953,3214.0,3213.1,0.28842262]
[1768846531521,0.95096399,3213.9,3213.1,0.28842262]
[1768846531719,1.736,3214.3,3213.1,0.28842262]
[1768846532021,0.95096105,3214.2,3213.2,0.1317263]
[1768846532218,0.95096105,3214.1,3213.2,0.1317263]
[1768846532419,1.737,3214.3,3213.2,0.1317263]
[1768846532727,0.95106228,3214.2,3213.2,0.1317263]
[1768846533023,0.95106228,3214.1,3213.2,0.1317263]
[1768846533226,1.737,3214.3,3213.2,0.1317263]
[1768846533414,0.9510629,3214.2,3213.2,0.1317263]
[1768846533616,0.9510629,3214.1,3213.2,0.1317263]
[1768846533816,1.737,3214.3,3213.2,0.1317263]
[1768846534020,0.9510773,3214.2,3213.2,0.1317263]
[1768846534318,0.9510773,3214.1,3213.2,0.1317263]
[1768846534518,1.737,3214.3,3213.2,0.1317263]
[1768846534714,0.95108357,3214.2,3213.2,0.1317263]
[1768846534921,0.95108357,3214.1,3213.2,0.1317263]
[1768846535122,3.02924448,3214.3,3213.2,0.1317263]
[1768846535322,0.95108602,3214.2,3213.2,0.1317263]
[1768846535622,0.95108602,3214.1,3213.2,0.1317263]
[1768846535925,3.02924448,3214.3,3213.2,0.1317263]
[1768846536224,0.95111276,3214.2,3213.2,0.1317263]
[1768846536421,0.95111276,3214.1,3213.2,0.1317263]
[1768846536621,3.02924448,3214.3,3213.2,0.1317263]
[1768846536818,0.95114369,3214.2,3213.2,0.1317263]
[1768846537023,0.95114369,3214.1,3213.2,0.1317263]
[1768846537225,3.02924448,3214.3,3213.2,0.1317263]
[1768846537422,0.95114231,3214.2,3213.2,0.1317263]
[1768846537623,0.95114231,3214.1,3213.2,0.1317263]
[1768846537924,3.02924448,3214.3,3213.2,0.1317263]
[1768846538123,0.95116026,3214.2,3213.2,0.1317263]
[1768846538324,0.95116026,3214.1,3213.2,0.1317263]
[1768846538536,3.02924448,3214.3,3213.2,0.1317263]
[1768846538723,0.95117192,3214.2,3213.2,0.1317263]
[1768846539023,0.95117192,3214.1,3213.2,0.1317263]
[1768846539229,3.02924448,3214.3,3213.2,0.1317263]
[1768846539419,0.95119982,3214.2,3213.2,0.1317263]
[1768846539617,0.95119982,3214.1,3213.2,0.1317263]
[1768846539829,3.02924448,3214.3,3213.2,0.1317263]
[1768846540125,0.95120047,3214.2,3213.2,0.1317263]
[1768846540314,0.95119553,3214.1,3213.2,0.1317263]
[1768846540512,3.02924448,3214.3,3213.2,0.1317263]
[1768846540712,0.95113136,3214.2,3213.2,0.1317263]
[1768846540928,0.95113136,3214.1,3213.2,0.1317263]
[1768846541128,1.737,3214.3,3213.2,0.1317263]
[1768846541315,0.95113383,3214.2,3213.2,0.1317263]
[1768846541518,0.95113383,3214.1,3213.2,0.1317263]
[1768846541816,1.737,3214.3,3213.2,0.1317263]
[1768846542026,0.95115247,3214.2,3213.2,0.1317263]
[1768846542231,0.95115247,3214.1,3213.2,0.1317263]
[1768846542525,1.737,3214.3,3213.2,0.1317263]
[1768846542730,0.95118211,3214.2,3213.2,0.1317263]
[1768846542918,1.737,3214.3,3213.2,0.1317263]
[1768846542919,0.95118211,3214.1,3213.2,0.1317263]
[1768846543120,1.737,3214.3,3213.2,0.1317263]
[1768846543317,0.951182,3214.2,3213.2,0.1317263]
[1768846543523,0.951182,3214.1,3213.2,0.1317263]
[1768846543724,1.737,3214.3,3213.2,0.1317263]
[1768846543924,0.95117635,3214.2,3213.2,0.1317263]
[1768846544122,0.95117635,3214.1,3213.2,0.1317263]
[1768846544321,1.737,3214.3,3213.2,0.1317263]
[1768846544522,0.95118078,3214.2,3213.2,0.1317263]
[1768846544731,0.95118078,3214.1,3213.2,0.1317263]
[1768846545033,1.737,3214.3,3213.2,0.1317263]
[1768846545332,0.95117027,3214.2,3213.2,0.1317263]
[1768846545531,0.95117027,3214.1,3213.2,0.1317263]
[1768846545731,1.737,3214.3,3213.2,0.1317263]
[1768846545922,0.95112536,3214.2,3213.2,0.1317263]
[1768846546123,0.95112536,3214.1,3213.2,0.1317263]
[1768846546324,1.737,3214.3,3213.2,0.1317263]
[1768846546524,0.9511094,3214.2,3213.2,0.1317263]
[1768846546721,0.9511094,3214.1,3213.2,0.1317263]
[1768846546931,1.737,3214.3,3213.2,0.1317263]
[1768846547130,0.95110925,3214.2,3213.2,0.1317263]
[1768846547331,0.95110925,3214.1,3213.2,0.1317263]
[1768846547533,1.737,3214.3,3213.2,0.1317263]
[1768846547725,0.95109606,3214.2,3213.2,0.1317263]
[1768846547925,0.95109606,3214.1,3213.2,0.1317263]
[1768846548121,1.737,3214.3,3213.2,0.1317263]
[1768846548345,0.95109616,3214.2,3213.2,0.1317263]
[1768846548537,0.95109616,3214.1,3213.2,0.1317263]
[1768846548836,1.737,3214.3,3213.2,0.1317263]
[1768846549134,0.95173435,3214.2,3213.2,0.1317263]
[1768846549333,0.95173435,3214.1,3213.2,0.2874163]
[1768846549534,1.737,3214.3,3213.2,0.2874163]
[1768846549833,0.9517672,3214.2,3213.2,0.2874163]
[1768846550133,0.9517672,3214.1,3213.2,0.2874163]
[1768846550334,1.737,3214.3,3213.2,0.2874163]
[1768846550534,0.95218557,3214.2,3213.2,0.2874163]
[1768846550734,0.95218557,3214.1,3213.2,0.2874163]
[1768846550937,1.737,3214.3,3213.2,0.2874163]
[1768846551129,0.95219214,3214.2,3213.2,0.2874163]
[1768846551328,0.95219214,3214.1,3213.2,0.2874163]
[1768846551537,1.737,3214.3,3213.2,0.2874163]
[1768846551737,0.95223854,3214.2,3213.2,0.2874163]
[1768846552032,0.95223854,3214.1,3213.2,0.2874163]
[1768846552227,1.737,3214.3,3213.2,0.2874163]
[1768846552428,0.9522445,3214.2,3213.2,0.2874163]
[1768846552736,0.9522445,3214.1,3213.2,0.2874163]
[1768846553030,1.29224448,3214.4,3213.2,0.2874163]
[1768846553231,0.08177039,3655.2,3213.8,1.29224448]
[1768846553232,0.95226342,3214.3,3213.8,1.29224448]
[1768846553438,1.67027093,3214.8,3213.7,0.15566]
[1768846553439,3.02924448,3214.8,3213.7,0.15566]
[1768846553628,1.29224448,3214.6,3213.7,0.15566]
[1768846553829,0.95221825,3214.5,3213.7,0.15566]
[1768846554034,0.95221825,3214.4,3213.7,0.15566]
[1768846554229,0.95221825,3214.3,3213.7,0.15566]
[1768846554536,1.737,3214.8,3213.7,0.15566]
[1768846554738,2.24436858,3214.7,3213.7,0.15566]
[1768846554926,0.9521241,3214.6,3213.7,0.15566]
[1768846555846,1.29224448,3214.5,3213.7,0.15566]
[1768846556041,0.9521241,3214.4,3213.7,0.15566]
[1768846556242,1.29224448,3214.5,3213.7,0.15566]
[1768846556443,0.95202923,3214.4,3213.7,0.15566]
[1768846556743,1.29224448,3214.5,3213.7,0.15566]
[1768846556940,0.95202771,3214.4,3213.7,0.15566]
[1768846557239,1.29224448,3214.5,3213.7,0.15566]
[1768846557441,0.9520268,3214.4,3213.7,0.15566]
[1768846557639,1.29224448,3214.5,3213.7,0.15566]
[1768846557840,0.9519849,3214.4,3213.7,0.15566]
[1768846558035,1.29224448,3214.5,3213.7,0.15566]
[1768846558238,0.95198406,3214.4,3213.7,0.15566]
[1768846558435,1.29224448,3214.5,3213.7,0.15566]
[1768846558634,0.95195765,3214.4,3213.7,0.15566]
[1768846558837,1.29224448,3214.7,3213.7,0.15566]
[1768846559036,0.95195751,3214.6,3213.7,0.15566]
[1768846559334,0.95195751,3214.5,3213.7,0.15566]
[1768846559528,0.95195751,3214.4,3213.7,0.15566]
[1768846559744,1.29224448,3214.7,3213.7,0.15566]
[1768846559944,0.95194846,3214.6,3213.7,0.15566]
[1768846560147,0.95194846,3214.5,3213.7,0.15566]
[1768846560344,0.95194846,3214.4,3213.7,0.15566]
[1768846560543,1.29224448,3214.7,3213.7,0.15566]
[1768846560745,0.95200338,3214.6,3213.7,0.15566]
[1768846560944,0.95200338,3214.5,3213.7,0.15566]
[1768846561137,0.95200338,3214.4,3213.7,0.15566]
[1768846561338,1.29224448,3214.7,3213.7,0.15566]
[1768846561538,0.95201755,3214.6,3213.7,0.15566]
[1768846561743,0.95201755,3214.5,3213.7,0.15566]
[1768846561945,0.95201755,3214.4,3213.7,0.15566]
[1768846562145,1.29224448,3214.7,3213.7,0.15566]
[1768846562447,0.95201246,3214.6,3213.7,0.15566]
[1768846562639,0.95201246,3214.5,3213.7,0.15566]
[1768846562939,0.95201246,3214.4,3213.7,0.15566]
[1768846563140,1.29224448,3214.7,3213.7,0.15566]
[1768846563446,0.95196319,3214.6,3213.7,0.15566]
[1768846563648,0.95196319,3214.5,3213.7,0.15566]
[1768846563850,0.95196319,3214.4,3213.7,0.15566]
[1768846564051,1.29224448,3214.7,3213.7,0.15566]
[1768846564251,0.95192991,3214.6,3213.7,0.15566]
[1768846564443,1.29224448,3214.7,3213.7,0.15566]
[1768846564444,0.95192991,3214.5,3213.7,0.15566]
[1768846564642,0.95192991,3214.4,3213.7,0.15566]
[1768846564849,1.29224448,3214.7,3213.7,0.15566]
[1768846565149,0.95190468,3214.6,3213.7,0.15566]
[1768846565351,0.95190468,3214.5,3213.7,0.15566]
[1768846565647,0.95190468,3214.4,3213.7,0.15566]
[1768846565844,1.29224448,3214.7,3213.7,0.15566]
[1768846566046,0.95188226,3214.6,3213.7,0.15566]
[1768846566246,0.95188226,3214.5,3213.7,0.15566]
[1768846566448,0.95188226,3214.4,3213.7,0.15566]
[1768846566648,1.29224448,3214.7,3213.7,0.15566]
[1768846566850,0.95186601,3214.6,3213.7,0.15566]
[1768846567051,0.95186601,3214.5,3213.7,0.15566]
[1768846567256,0.95186601,3214.4,3213.7,0.15566]
[1768846567552,1.74363122,3214.8,3213.7,0.15566]
[1768846567758,2.24410768,3214.7,3213.7,0.15566]
[1768846567947,0.9518632,3214.6,3213.7,0.15566]
[1768846570265,1.29224448,3214.5,3213.1,1.57911539]
[1768846570557,0.9518632,3214.4,3213.1,0.28687091]
[1768846572454,1.29224448,3214.1,3213.1,0.15569]
[1768846575857,0.00628793,3214.5,3213.1,0.15569]
[1768846576063,0.95176404,3214.4,3213.1,0.15569]
[1768846576262,1.29853241,3214.5,3213.1,0.15569]
[1768846576263,0.95176404,3214.3,3213.1,0.15569]
[1768846576464,0.95176404,3214.2,3213.1,0.15569]
[1768846576653,0.95176404,3214.1,3213.1,0.15569]
[1768846576851,1.29853241,3214.5,3213.1,0.15569]
[1768846577063,0.9517436,3214.4,3213.1,0.15569]
[1768846577362,0.9517436,3214.3,3213.1,0.15569]
[1768846577562,0.9517436,3214.2,3213.1,0.15569]
[1768846577764,0.9517436,3214.1,3213.1,0.15569]
[1768846577964,1.29853241,3214.5,3213.1,0.15569]
[1768846578165,0.9517215,3214.4,3213.1,0.15569]
[1768846578360,0.9517215,3214.3,3213.1,0.15569]
[1768846578565,0.9517215,3214.2,3213.1,0.15569]
[1768846578765,0.9517215,3214.1,3213.1,0.15569]
[1768846578965,1.29853241,3214.5,3213.1,0.15569]
[1768846579171,0.95171106,3214.4,3213.1,0.15569]
[1768846579369,0.95171106,3214.3,3213.1,0.15569]
[1768846579668,0.95171106,3214.2,3213.1,0.15569]
[1768846579871,0.95171106,3214.1,3213.1,0.15569]
[1768846580071,1.29853241,3214.5,3213.1,0.15569]
[1768846580262,0.95083005,3214.4,3213.1,0.15569]
[1768846580462,0.95083005,3214.3,3213.1,0.15569]
[1768846580663,0.95083005,3214.2,3213.1,0.15569]
[1768846580862,0.95083005,3214.1,3213.1,0.15569]
[1768846581064,1.29853241,3214.5,3213.1,0.15569]
[1768846581263,0.95081597,3214.4,3213.1,0.15569]
[1768846581562,0.95081597,3214.3,3213.1,0.15569]
[1768846581763,0.95081597,3214.2,3213.1,0.15569]
[1768846581961,0.95081597,3214.1,3213.1,0.15569]
[1768846582160,1.29853241,3214.5,3213.1,0.15569]
[1768846582365,1.29224448,3214.3,3213.1,0.15569]
[1768846582560,0.95101736,3214.2,3213.1,0.15569]
[1768846584877,1.29224448,3214.1,3213.1,0.15569]
[1768846586865,0.00628793,3214.5,3212.8,0.00226991]
[1768846586866,1.29224448,3213.7,3212.8,0.00226991]
[1768846588877,1.29224448,3213.9,3212.8,0.00226991]
[1768846589078,0.95089048,3213.8,3212.8,0.00226991]
[1768846589280,1.29224448,3213.9,3212.8,0.00226991]
[1768846589879,0.00370205,3214.2,3212.8,0.00226991]
[1768846590075,2.24305547,3214.1,3212.8,0.00226991]
[1768846590269,0.95081099,3214.0,3212.8,0.00226991]
[1768846590470,0.95081099,3213.9,3212.8,0.00226991]
[1768846590765,1.29224448,3214.1,3212.8,0.00226991]
[1768846590964,0.9509211,3214.0,3212.8,0.00226991]
[1768846591168,0.9509211,3213.9,3213.0,1.29224448]
[1768846591480,3.02924448,3214.4,3213.1,0.13373762]
[1768846591777,0.95102059,3214.3,3213.1,0.13373762]
[1768846592073,2.24326507,3214.2,3213.1,0.13373762]
[1768846592380,1.29224448,3214.0,3213.1,0.13373762]
[1768846592679,0.95102059,3213.9,3212.9,0.1557]
[1768846594580,1.29224448,3213.6,3212.9,0.1557]
[1768846594880,1.29224448,3213.8,3212.9,0.1557]
[1768846595080,1.29224448,3214.1,3212.9,0.1557]
[1768846595283,0.95122257,3214.0,3212.9,0.1557]
[1768846595471,0.95122257,3213.9,3212.9,0.1557]
[1768846595672,1.737,3214.2,3212.9,1.5816821]
[1768846595885,0.95141182,3214.1,3212.9,1.5816821]
[1768846596083,1.67027093,3214.4,3212.9,1.5816821]
[1768846596084,0.95141182,3214.0,3213.0,0.28943762]
[1768846596273,1.737,3214.3,3213.0,0.28943762]
[1768846596570,0.95152279,3214.2,3213.0,0.28943762]
[1768846596767,0.95152279,3214.1,3213.0,0.28943762]
[1768846596974,0.95152279,3214.0,3213.0,0.28943762]
[1768846597276,1.737,3214.3,3213.0,0.28943762]
[1768846597476,0.95161724,3214.2,3213.0,0.28943762]
[1768846597683,0.95161724,3214.1,3213.0,0.28943762]
[1768846597873,0.95161724,3214.0,3213.0,0.28943762]
[1768846598075,1.737,3214.3,3213.0,0.28943762]
[1768846598377,0.95160921,3214.2,3213.0,0.28943762]
[1768846598577,0.95160921,3214.1,3213.0,0.28943762]
[1768846598780,0.95160921,3214.0,3213.0,0.28943762]
[1768846598984,1.737,3214.4,3213.0,0.28943762]
[1768846599175,0.95172912,3214.3,3213.0,0.28943762]
[1768846599378,0.95172912,3214.2,3213.0,0.28943762]
[1768846599677,0.95172912,3214.1,3213.0,0.28943762]
[1768846599872,0.95172912,3214.0,3213.0,0.28943762]
[1768846600075,0.95172912,3213.9,3213.0,0.28943762]
[1768846600286,1.737,3214.4,3213.0,0.28943762]
[1768846600489,0.95207218,3214.3,3213.0,0.28943762]
[1768846600688,0.95207218,3214.2,3213.0,0.28943762]
[1768846600880,0.95207218,3214.1,3213.0,0.28943762]
[1768846601079,0.95207218,3214.0,3213.0,0.28943762]
[1768846601281,0.95207218,3213.9,3213.0,0.28943762]
[1768846601481,1.737,3214.4,3213.0,0.28943762]
[1768846601683,0.952509,3214.3,3213.0,0.28943762]
[1768846601993,0.952509,3214.2,3213.0,0.28943762]
[1768846602295,0.952509,3214.1,3213.0,0.28943762]
[1768846602492,0.952509,3214.0,3213.0,0.28943762]
[1768846602692,0.952509,3213.9,3213.0,0.28943762]
[1768846602899,3.40727093,3214.4,3213.0,0.28943762]
[1768846603191,0.95260336,3214.3,3213.0,0.28943762]
[1768846603392,0.95260336,3214.2,3213.0,0.28943762]
[1768846603590,0.95260336,3214.1,3213.0,0.28943762]
[1768846603895,0.95260336,3214.0,3213.0,0.28943762]
[1768846604081,0.95260336,3213.9,3213.0,0.28943762]
[1768846604277,3.40727093,3214.4,3213.0,0.28943762]
[1768846604482,0.9526428,3214.3,3213.0,0.28943762]
[1768846604691,0.9526428,3214.2,3213.0,0.28943762]
[1768846604990,0.9526428,3214.1,3213.0,0.28943762]
[1768846605190,0.9526428,3214.0,3213.0,0.28943762]
[1768846605386,0.9526428,3213.9,3213.0,0.28943762]
[1768846605580,3.40727093,3214.4,3213.0,0.28943762]
[1768846605787,0.95265168,3214.3,3213.0,0.28943762]
[1768846605993,0.95265168,3214.2,3213.0,0.28943762]
[1768846606192,0.95265168,3214.1,3213.0,0.28943762]
[1768846606492,0.95265168,3214.0,3213.0,0.28943762]
[1768846606684,0.95265168,3213.9,3213.0,0.28943762]
[1768846606885,1.737,3214.3,3213.0,0.13373762]
[1768846607085,0.95257593,3214.2,3213.0,0.13373762]
[1768846607285,0.95257593,3214.1,3213.0,0.13373762]
[1768846607594,1.737,3214.3,3213.0,0.13373762]
[1768846607595,0.95257593,3214.0,3213.0,0.13373762]
[1768846607789,0.95257593,3213.9,3213.0,0.13373762]
[1768846608091,1.737,3214.3,3213.0,0.13373762]
[1768846608291,0.95259421,3214.2,3213.0,0.13373762]
[1768846608491,0.95259421,3214.1,3213.0,0.13373762]
[1768846608693,0.95259421,3214.0,3213.2,0.15569]
[1768846608894,0.95259421,3213.9,3213.2,0.15569]
[1768846609097,1.737,3214.3,3213.2,0.15569]
[1768846609295,0.95263433,3214.2,3213.2,0.15569]
[1768846609592,0.95263433,3214.1,3213.2,0.15569]
[1768846609793,0.95263433,3214.0,3213.2,0.15569]
[1768846610095,0.95263433,3213.9,3213.2,0.15569]
[1768846610294,1.737,3214.3,3213.2,0.15569]
[1768846610493,0.95190329,3214.2,3213.2,0.15569]
[1768846610694,0.95190329,3214.1,3213.2,0.15569]
[1768846610895,0.95190329,3214.0,3213.2,0.15569]
[1768846611094,0.95190329,3213.9,3213.2,0.15569]
[1768846611288,1.737,3214.3,3213.2,0.15569]
[1768846611490,0.95194194,3214.2,3213.2,0.15569]
[1768846611688,0.95194194,3214.1,3213.2,0.15569]
[1768846611890,0.95194194,3214.0,3213.2,0.15569]
[1768846612088,0.95194194,3213.9,3213.2,0.15569]
[1768846612289,1.737,3214.3,3213.2,0.15569]
[1768846612489,0.95198563,3214.2,3213.2,0.15569]
[1768846612790,0.95198563,3214.1,3213.2,0.15569]
[1768846612990,0.95198563,3214.0,3213.2,0.15569]
[1768846613288,0.95198563,3213.9,3213.2,0.15569]
[1768846613489,1.737,3214.3,3213.2,0.15569]
[1768846613693,0.95203559,3214.2,3213.2,0.15569]
[1768846613892,0.95203559,3214.1,3213.2,0.15569]
[1768846614198,0.95203559,3214.0,3213.2,0.15569]
[1768846614396,0.95203559,3213.9,3213.2,0.15569]
[1768846614596,1.737,3214.3,3213.2,0.15569]
[1768846614793,0.95208912,3214.2,3213.2,0.15569]
[1768846615099,0.95208912,3214.1,3213.2,0.15569]
[1768846615399,0.95208912,3214.0,3213.2,0.15569]
[1768846615690,0.95208912,3213.9,3213.2,0.15569]
[1768846615884,1.737,3214.3,3213.2,0.15569]
[1768846616088,0.95214362,3214.2,3213.2,0.15569]
[1768846616287,0.95214362,3214.1,3213.2,0.15569]
[1768846616484,0.95214362,3214.0,3213.2,0.15569]
[1768846616690,0.95214362,3213.9,3213.2,0.15569]
[1768846616898,0.95214362,3213.8,3213.2,0.15569]
[1768846617089,1.737,3214.3,3213.2,0.15569]
[1768846617291,0.95222186,3214.2,3213.2,0.15569]
[1768846617596,2.62249279,3214.2,3213.2,0.15569]
[1768846617998,0.95222186,3214.1,3213.2,0.15569]
[1768846618193,0.95222186,3214.0,3213.2,0.15569]
[1768846618390,0.95222186,3213.9,3213.2,0.15569]
[1768846618592,0.95222186,3213.8,3213.2,0.15569]
[1768846618791,0.95222186,3213.7,3213.2,0.15569]
[1768846618989,1.67027093,3214.2,3213.2,0.15569]
[1768846619193,0.95193159,3214.1,3213.2,0.15569]
[1768846619393,0.95193083,3214.0,3213.2,0.15569]
[1768846619603,0.95193083,3213.9,3213.2,0.15569]
[1768846619793,0.95193083,3213.8,3213.2,0.15569]
[1768846620000,0.95193083,3213.7,3213.2,0.15569]
[1768846620196,1.67027093,3214.4,3213.2,0.15569]
[1768846620400,1.737,3214.3,3213.2,0.15569]
[1768846620597,0.95196354,3214.2,3213.2,0.15569]
[1768846623306,0.95196354,3214.1,3213.2,0.15569]
[1768846623602,0.95196354,3214.0,3213.2,0.15569]
[1768846623802,0.95196354,3213.9,3213.2,0.15569]
[1768846624002,0.95196354,3213.8,3213.2,0.15569]
[1768846624303,1.737,3214.3,3213.2,0.15569]
[1768846624505,0.95201749,3214.2,3213.2,0.15569]
[1768846624695,0.95201749,3214.1,3213.2,0.15569]
[1768846624895,0.95201749,3214.0,3213.2,0.15569]
[1768846625096,0.95201749,3213.9,3213.2,0.15569]
[1768846625296,0.95201749,3213.8,3213.2,0.15569]
[1768846626004,1.738,3214.3,3213.2,0.15569]
[1768846626205,0.95207973,3214.2,3213.2,0.15569]
[1768846626504,1.738,3214.3,3213.2,0.15569]
[1768846627305,2.22702791,3214.7,3213.1,0.13542169]
[1768846627510,4.05288885,3215.2,3213.7,0.13542169]
[1768846627808,3.89729885,3215.2,3213.8,0.29108169]
[1768846628011,1.67349213,3214.8,3213.9,0.13542169]
[1768846628403,0.95222354,3214.7,3213.9,0.13542169]
[1768846628602,1.74110942,3215.0,3213.9,0.13542169]
[1768846628807,0.95211753,3214.9,3213.9,0.13542169]
[1768846629009,0.95211753,3214.8,3213.9,0.13542169]
[1768846629310,0.95211753,3214.7,3213.9,0.13542169]
[1768846629499,1.74110942,3215.0,3213.9,0.13542169]
[1768846629708,0.95113603,3214.9,3213.9,0.13542169]
[1768846629906,0.95113603,3214.8,3213.9,0.13542169]
[1768846630103,0.95113603,3214.7,3213.9,0.29107169]
[1768846630412,0.00310942,3215.0,3213.9,0.29107169]
[1768846630612,0.94946682,3214.9,3213.9,0.29107169]
[1768846630812,0.94946682,3214.8,3213.9,0.29107169]
[1768846631006,0.94946682,3214.7,3213.9,0.29107169]
[1768846631206,0.00310942,3215.0,3213.9,0.29107169]
[1768846631408,0.94908853,3214.9,3213.9,0.29107169]
[1768846631606,0.94908853,3214.8,3213.9,0.29107169]
[1768846631811,0.00310942,3215.0,3213.9,0.29107169]
[1768846632013,0.94908469,3214.9,3213.9,0.29107169]
[1768846632207,0.00310942,3215.0,3213.9,0.29107169]
[1768846632208,0.94908469,3214.8,3213.9,0.29107169]
[1768846632408,0.00310942,3215.0,3213.9,0.13542169]
[1768846632617,0.00310942,3215.0,3214.2,0.29106169]
[1768846632910,0.00310942,3215.0,3214.3,0.13542169]
[1768846633214,2.23132285,3215.9,3214.4,0.29105169]
[1768846633215,1.67326923,3215.8,3214.4,0.29105169]
[1768846633416,0.94836084,3215.7,3214.4,0.29105169]
[1768846633611,0.94836084,3215.6,3214.4,0.29105169]
[1768846633818,0.94836084,3215.5,3214.4,0.29105169]
[1768846634007,0.94836084,3215.4,3214.4,0.29105169]
[1768846634208,0.00221391,3215.4,3214.4,0.29105169]
[1768846634410,0.00221391,3215.4,3214.5,0.15562]
[1768846634611,0.00221391,3215.4,3214.5,0.29104169]
[1768846635715,0.00221391,3215.4,3214.6,0.15562]
[1768846637120,0.00221391,3215.4,3214.7,0.15562]
[1768846655143,0.00221391,3215.4,3214.4,0.13542169]
[1768846658452,1.2912934,3215.3,3214.2,0.15564]
[1768846658653,1.2912934,3214.7,3213.7,0.15566]
[1768846659558,1.2912934,3215.2,3213.8,0.13615167]
[1768846659852,0.94307261,3215.1,3214.2,0.13615167]
[1768846660048,0.00221391,3215.4,3214.2,0.13615167]
[1768846660250,0.943132,3215.3,3214.2,0.13615167]
[1768846660450,0.943132,3215.2,3214.2,0.13615167]
[1768846660647,0.943132,3215.1,3214.2,0.13615167]
[1768846660855,0.00221391,3215.4,3214.2,0.13615167]
[1768846661056,0.94337678,3215.3,3214.2,0.13615167]
[1768846661354,0.94337678,3215.2,3214.2,0.13615167]
[1768846662855,0.94337678,3215.1,3214.2,0.13615167]
[1768846663059,1.2912934,3215.3,3214.2,0.13615167]
[1768846663261,0.94390087,3215.2,3214.2,0.13615167]
[1768846663462,0.94390087,3215.1,3214.2,0.13615167]
[1768846663659,1.2912934,3215.3,3214.2,0.13615167]
[1768846663866,0.94369802,3215.2,3214.2,0.13615167]
[1768846664162,0.94369802,3215.1,3214.2,0.13615167]
[1768846664362,1.2912934,3215.3,3214.2,0.13615167]
[1768846664555,0.94367334,3215.2,3214.2,0.13615167]
[1768846664756,0.94367334,3215.1,3214.2,0.13615167]
[1768846664956,1.2912934,3215.3,3214.2,0.13615167]
[1768846665156,0.94367367,3215.2,3214.2,0.13615167]
[1768846665358,0.94367367,3215.1,3214.2,0.13615167]
[1768846665558,1.2912934,3215.3,3214.2,0.13615167]
[1768846665759,0.94361811,3215.2,3214.2,0.13615167]
[1768846665959,0.94361811,3215.1,3214.2,0.13615167]
[1768846666159,1.2912934,3215.3,3214.2,0.13615167]
[1768846666363,0.94341378,3215.2,3214.2,0.13615167]
[1768846666563,0.94341378,3215.1,3214.2,0.13615167]
[1768846666869,1.2912934,3215.3,3214.2,0.13615167]
[1768846667070,0.94338517,3215.2,3214.2,0.13615167]
[1768846667269,0.94338517,3215.1,3214.2,0.13615167]
[1768846667466,1.2912934,3215.3,3214.2,0.13615167]
[1768846667765,0.94334353,3215.2,3214.2,0.13615167]
[1768846667958,0.94334353,3215.1,3214.2,0.13615167]
[1768846668155,1.2912934,3215.3,3214.2,0.13615167]
[1768846668358,0.9433177,3215.2,3214.2,0.13615167]
[1768846668560,0.9433177,3215.1,3214.2,0.13615167]
[1768846668764,1.2912934,3215.3,3214.2,0.13615167]
[1768846668962,0.94333631,3215.2,3214.2,0.13615167]
[1768846669165,0.94333631,3215.1,3214.2,0.13615167]
[1768846669366,1.2912934,3215.3,3214.2,0.13615167]
[1768846669563,0.94331182,3215.2,3214.2,0.13615167]
[1768846669765,0.94331182,3215.1,3214.3,0.13519255]
[1768846669967,0.00221391,3215.4,3214.3,0.13519255]
[1768846670167,0.94326302,3215.3,3214.3,0.13519255]
[1768846670367,0.94326302,3215.2,3214.3,0.13519255]
[1768846670567,0.00221391,3215.4,3214.3,0.13519255]
[1768846670773,0.94325557,3215.3,3214.3,0.13519255]
[1768846670973,0.94325557,3215.2,3214.3,0.13519255]
[1768846671173,0.94325654,3215.1,3214.3,0.13519255]
[1768846671374,0.00221391,3215.4,3214.3,0.13519255]
[1768846671568,0.94325737,3215.3,3214.3,0.13519255]
[1768846671768,0.94325737,3215.2,3214.3,0.13519255]
[1768846671969,0.94325737,3215.1,3214.3,0.13519255]
[1768846672171,0.00221391,3215.4,3214.3,0.13519255]
[1768846672367,0.94325429,3215.3,3214.3,0.13519255]
[1768846672576,0.94325429,3215.2,3214.3,0.13519255]
[1768846672778,0.94325429,3215.1,3214.3,0.13519255]
[1768846672979,0.00221391,3215.4,3214.3,0.13519255]
[1768846673171,0.94325612,3215.3,3214.3,0.13519255]
[1768846673376,0.94325612,3215.2,3214.3,0.13519255]